bitfinex/quotes_BTCUSD_20220202
["timestamp","ask_amount","ask_price","bid_price","bid_amount"]
[1643814602557,0.95,37714.0,37713.0,45.74733051]
[1643814602558,2.73234735,37714.0,37713.0,45.74733051]
[1643814602758,2.73234735,37714.0,37713.0,21.80313085]
[1643814602759,2.52446515,37714.0,37713.0,21.80313085]
[1643814602959,2.55094515,37714.0,37713.0,16.75646459]
[1643814603156,2.55094515,37714.0,37713.0,16.70646459]
[1643814603455,3.39669089,37714.0,37713.0,11.82467963]
[1643814603656,3.64527215,37714.0,37713.0,7.53561892]
[1643814603855,3.64527215,37714.0,37704.0,0.0011]
[1643814603856,0.65,37713.0,37704.0,0.0011]
[1643814604115,0.55,37701.0,37700.0,0.001]
[1643814604308,0.949291,37701.0,37700.0,0.001]
[1643814604506,0.999291,37701.0,37699.0,0.0001]
[1643814604705,0.350391,37700.0,37699.0,0.0001]
[1643814604907,0.399291,37700.0,37699.0,0.0001]
[1643814605507,0.0489,37700.0,37699.0,0.0001]
[1643814606309,0.399291,37700.0,37699.0,0.0001]
[1643814606506,0.69370664,37700.0,37699.0,0.0001]
[1643814606915,1.14011655,37700.0,37699.0,0.0001]
[1643814607208,0.69370664,37700.0,37699.0,0.0001]
[1643814607512,1.1442623,37700.0,37699.0,0.0001]
[1643814607860,1.17970617,37700.0,37699.0,0.0001]
[1643814608061,1.22970617,37700.0,37699.0,0.0001]
[1643814608266,0.79370664,37700.0,37699.0,0.0001]
[1643814608758,1.23294183,37700.0,37699.0,0.0001]
[1643814608958,1.28294183,37700.0,37699.0,0.0001]
[1643814609158,1.23294183,37700.0,37699.0,0.0001]
[1643814609359,1.28294183,37700.0,37699.0,0.0001]
[1643814610165,1.28294183,37700.0,37692.0,0.00343839]
[1643814610166,0.25,37698.0,37692.0,0.00343839]
[1643814610365,0.0492057,37693.0,37692.0,0.00343839]
[1643814610562,0.4934967,37693.0,37692.0,0.00243839]
[1643814610762,0.4934967,37693.0,37691.0,0.011]
[1643814610763,0.3,37692.0,37691.0,0.011]
[1643814610961,0.699291,37692.0,37691.0,0.011]
[1643814611361,0.699291,37692.0,37679.0,0.001]
[1643814611362,0.0442057,37690.0,37679.0,0.001]
[1643814611612,0.5434967,37690.0,37679.0,0.001]
[1643814611809,0.6434967,37690.0,37679.0,0.001]
[1643814612415,0.0387657,37683.0,37679.0,0.001]
[1643814612611,0.399291,37682.0,37679.0,0.001]
[1643814612910,0.396451,37682.0,37679.0,0.001]
[1643814613309,0.386921,37682.0,37679.0,0.001]
[1643814614814,0.386921,37682.0,37680.0,0.00035522]
[1643814615765,0.386791,37682.0,37679.0,0.001]
[1643814615966,0.85007991,37682.0,37680.0,0.000276]
[1643814616363,0.386791,37682.0,37680.0,0.000276]
[1643814616963,0.386791,37682.0,37679.0,0.001]
[1643814617164,0.386791,37682.0,37680.0,0.000276]
[1643814618165,0.04108954,37686.0,37679.0,0.001]
[1643814618365,0.04108954,37686.0,37680.0,0.000276]
[1643814618566,0.350693,37685.0,37680.0,0.000276]
[1643814618767,0.339719,37687.0,37680.0,0.000276]
[1643814618967,0.334719,37687.0,37680.0,0.000276]
[1643814619420,0.334719,37687.0,37679.0,0.001]
[1643814619624,0.334719,37687.0,37682.0,0.00027598]
[1643814620423,0.49036708,37691.0,37682.0,0.00027598]
[1643814620621,0.01985792,37687.0,37679.0,0.001]
[1643814620822,0.01985792,37687.0,37683.0,0.0002931]
[1643814621021,0.0279057,37694.0,37684.0,0.22902925]
[1643814621022,0.0779057,37691.0,37684.0,0.22902925]
[1643814621322,0.00055714,37694.0,37683.0,0.0002931]
[1643814621323,0.05,37684.0,37683.0,0.0002931]
[1643814621526,0.433637,37684.0,37683.0,0.0002931]
[1643814621727,1.75920215,37684.0,37677.0,0.00527256]
[1643814621927,1.75920215,37684.0,37667.0,0.001]
[1643814621928,0.0779057,37676.0,37667.0,0.001]
[1643814622226,0.4,37674.0,37667.0,0.001]
[1643814622527,0.27333233,37669.0,37668.0,0.001172]
[1643814622729,0.60696933,37669.0,37668.0,0.001172]
[1643814622952,0.60696933,37669.0,37668.0,0.0011]
[1643814623355,0.60696933,37669.0,37668.0,0.2011]
[1643814623554,0.383637,37669.0,37668.0,0.2011]
[1643814623754,0.0489,37669.0,37668.0,0.2011]
[1643814624356,0.0439,37669.0,37668.0,0.5011]
[1643814624554,0.394577,37669.0,37668.0,0.5011]
[1643814626455,0.394577,37669.0,37668.0,0.2011]
[1643814627314,0.394577,37669.0,37668.0,0.6511]
[1643814628114,0.0439,37669.0,37668.0,0.6511]
[1643814628317,0.0439,37669.0,37668.0,1.10303367]
[1643814629315,0.0439,37669.0,37668.0,0.6511]
[1643814630358,0.0489,37675.0,37668.0,1.1189186]
[1643814630556,0.0439,37675.0,37668.0,1.1189906]
[1643814630957,0.0439,37675.0,37668.0,0.651172]
[1643814630958,0.05,37674.0,37668.0,0.651172]
[1643814631256,0.91218937,37673.0,37669.0,7.2e-05]
[1643814631558,0.05,37670.0,37669.0,7.2e-05]
[1643814631760,0.942289,37670.0,37665.0,0.0031]
[1643814631962,0.05,37666.0,37665.0,0.0031]
[1643814632159,0.449577,37666.0,37665.0,0.0001]
[1643814632359,0.449577,37666.0,37657.0,0.03891294]
[1643814632360,0.0279057,37661.0,37657.0,0.03891294]
[1643814632573,0.0279057,37661.0,37650.0,0.2]
[1643814632574,0.05,37659.0,37650.0,0.2]
[1643814632760,0.05,37659.0,37643.0,0.003]
[1643814632761,0.2079057,37651.0,37643.0,0.003]
[1643814632967,0.05,37646.0,37641.0,0.0031]
[1643814633162,0.29667429,37644.0,37641.0,0.0031]
[1643814633358,0.383637,37643.0,37640.0,0.010616]
[1643814633558,0.30240502,37636.0,37631.0,0.0320943]
[1643814633757,0.0489,37635.0,37631.0,0.0320943]
[1643814633958,0.0489,37636.0,37632.0,0.25376915]
[1643814634209,0.0489,37636.0,37632.0,0.25387446]
[1643814634413,0.0489,37636.0,37632.0,0.27596876]
[1643814634609,0.0489,37636.0,37632.0,0.25387446]
[1643814634810,0.0489,37636.0,37632.0,0.00010531]
[1643814635010,0.350677,37635.0,37632.0,0.00010531]
[1643814635209,0.0489,37634.0,37631.0,0.01]
[1643814635410,0.232865,37644.0,37634.0,0.01776294]
[1643814635614,0.0489,37643.0,37635.0,0.0220943]
[1643814635809,1.223512,37649.0,37634.0,0.03112294]
[1643814635810,0.0489,37642.0,37640.0,0.0220943]
[1643814636011,0.0489,37642.0,37641.0,0.98026428]
[1643814637015,0.7366,37655.0,37641.0,0.98026428]
[1643814637016,0.7366,37655.0,37642.0,0.9]
[1643814637215,0.20028,37658.0,37651.0,0.05]
[1643814637216,0.0489,37652.0,37651.0,0.05]
[1643814637415,1.656074,37657.0,37648.0,0.27749709]
[1643814637613,0.492712,37656.0,37648.0,0.0220943]
[1643814637862,0.492712,37656.0,37650.0,0.00034954]
[1643814638062,1.163362,37657.0,37650.0,0.00034954]
[1643814638269,0.492712,37656.0,37650.0,0.00034954]
[1643814638462,0.350677,37655.0,37650.0,0.00034954]
[1643814638660,0.350677,37655.0,37647.0,0.0220943]
[1643814638861,0.492712,37656.0,37651.0,0.00034952]
[1643814639060,0.350677,37655.0,37651.0,0.00034952]
[1643814639261,0.334737,37656.0,37652.0,0.25380728]
[1643814639565,0.350677,37655.0,37652.0,0.25380728]
[1643814639760,0.10187,37656.0,37652.0,0.25380728]
[1643814640162,0.10187,37656.0,37652.0,0.2541568]
[1643814640764,0.10187,37656.0,37652.0,0.00034952]
[1643814640962,0.10187,37656.0,37650.0,0.01244382]
[1643814640963,0.350677,37655.0,37650.0,0.01244382]
[1643814641164,0.10187,37656.0,37650.0,0.01244382]
[1643814641362,0.10187,37656.0,37652.0,0.00010485]
[1643814642207,0.10187,37655.0,37652.0,0.00010485]
[1643814642408,0.36717,37655.0,37648.0,0.62563477]
[1643814642608,0.36717,37655.0,37648.0,0.69943411]
[1643814643009,0.36717,37655.0,37653.0,0.20420749]
[1643814643209,0.36717,37655.0,37649.0,0.23485767]
[1643814643414,0.10187,37655.0,37649.0,0.23485767]
[1643814643809,0.42180599,37656.0,37648.0,0.62563477]
[1643814644211,0.41751203,37656.0,37650.0,0.31719704]
[1643814644409,0.42565363,37656.0,37650.0,0.31719704]
[1643814644610,0.42535234,37656.0,37650.0,0.31719704]
[1643814644811,0.42535234,37656.0,37650.0,0.55969575]
[1643814645011,1.163362,37657.0,37650.0,0.55969575]
[1643814645459,0.42355199,37656.0,37650.0,0.55969575]
[1643814645660,0.42224095,37656.0,37650.0,0.55969575]
[1643814645858,0.42224095,37656.0,37650.0,0.29249871]
[1643814646063,0.42224095,37656.0,37650.0,0.00034839]
[1643814646265,0.350677,37655.0,37650.0,0.00034839]
[1643814646463,0.52330462,37654.0,37650.0,0.00034839]
[1643814646661,0.334737,37653.0,37650.0,0.00034839]
[1643814646867,0.43122213,37652.0,37650.0,0.00034839]
[1643814647063,0.49510204,37656.0,37649.0,0.24707935]
[1643814647264,0.41893831,37656.0,37652.0,0.22647152]
[1643814647466,1.163362,37657.0,37652.0,0.22647152]
[1643814647667,1.163362,37657.0,37648.0,0.38633272]
[1643814647867,1.163362,37657.0,37648.0,0.08910946]
[1643814648066,1.163362,37657.0,37649.0,0.24703254]
[1643814648268,1.163362,37657.0,37655.0,0.32142031]
[1643814648467,1.163362,37657.0,37656.0,1.17221248]
[1643814648772,1.163362,37657.0,37656.0,1.22221248]
[1643814648967,1.163362,37657.0,37656.0,0.9]
[1643814648968,1.60361395,37657.0,37656.0,0.9]
[1643814649216,1.61746535,37657.0,37656.0,0.9]
[1643814649413,1.514039,37657.0,37656.0,0.9]
[1643814650214,1.163362,37657.0,37656.0,0.9]
[1643814651018,1.163362,37657.0,37656.0,1.12934398]
[1643814651518,1.163362,37657.0,37656.0,0.9]
[1643814651913,1.163362,37657.0,37656.0,0.95]
[1643814652117,1.163362,37657.0,37656.0,0.9]
[1643814652318,1.43293357,37657.0,37648.0,0.24463968]
[1643814652973,1.163362,37657.0,37648.0,0.24463968]
[1643814653176,1.163362,37657.0,37648.0,0.24429127]
[1643814653372,1.0,37656.0,37654.0,0.26001143]
[1643814653772,0.24992096,37656.0,37655.0,0.85159558]
[1643814654177,0.24992096,37656.0,37655.0,0.6]
[1643814655576,0.7319829,37656.0,37655.0,0.6]
[1643814655874,0.24992096,37656.0,37655.0,0.6]
[1643814656078,0.24992096,37656.0,37648.0,0.00034841]
[1643814656478,0.48206194,37655.0,37650.0,0.28342163]
[1643814656717,0.24992096,37656.0,37650.0,0.28342163]
[1643814656911,0.24992096,37656.0,37648.0,0.00034841]
[1643814657112,0.24992096,37656.0,37651.0,0.36819385]
[1643814657315,0.24992096,37656.0,37652.0,0.350677]
[1643814657316,0.14992096,37656.0,37652.0,0.350677]
[1643814657513,0.03470168,37656.0,37652.0,0.350677]
[1643814657711,0.03470168,37656.0,37653.0,0.1]
[1643814658016,0.03470168,37656.0,37653.0,0.62790051]
[1643814658213,0.03470168,37656.0,37653.0,0.52790051]
[1643814659217,0.03470168,37656.0,37653.0,0.23173172]
[1643814659413,0.03470168,37656.0,37648.0,0.00010452]
[1643814659613,0.03470168,37656.0,37649.0,0.350677]
[1643814659815,0.4605988,37656.0,37648.0,0.00010452]
[1643814660214,0.25043174,37654.0,37648.0,0.00010452]
[1643814660466,0.03470168,37656.0,37648.0,0.00034841]
[1643814661873,0.03470168,37656.0,37650.0,0.20155076]
[1643814662168,0.03470168,37656.0,37650.0,0.25155076]
[1643814662569,0.03470168,37656.0,37650.0,0.30155076]
[1643814662768,0.03470168,37656.0,37652.0,0.08600596]
[1643814663167,0.03470168,37656.0,37652.0,0.13600596]
[1643814663366,0.03470168,37656.0,37653.0,0.350677]
[1643814663568,0.03470168,37656.0,37652.0,0.33588212]
[1643814664208,0.03470168,37656.0,37653.0,0.1]
[1643814664413,0.03470168,37656.0,37654.0,0.350677]
[1643814664810,0.03470168,37656.0,37654.0,0.400677]
[1643814665012,0.03470168,37656.0,37655.0,1.250677]
[1643814665210,0.03470168,37656.0,37655.0,1.300677]
[1643814665810,0.03470168,37656.0,37655.0,0.95]
[1643814666211,0.03470168,37656.0,37655.0,0.9]
[1643814667856,0.00366221,37656.0,37655.0,0.9]
[1643814668056,0.00366221,37656.0,37655.0,1.23564189]
[1643814668458,0.00366221,37656.0,37655.0,0.9]
[1643814668659,0.00366221,37656.0,37655.0,1.58631889]
[1643814668856,0.00366221,37656.0,37655.0,1.28564189]
[1643814669057,0.00366221,37656.0,37655.0,1.23564189]
[1643814669257,0.00366221,37656.0,37655.0,0.9]
[1643814669458,0.00366221,37656.0,37655.0,1.63631889]
[1643814669763,0.00366221,37656.0,37655.0,1.23564189]
[1643814669957,0.00366221,37656.0,37655.0,1.58631889]
[1643814670459,0.66722421,37657.0,37655.0,1.250677]
[1643814670660,0.00055825,37663.0,37661.0,0.27340454]
[1643814670859,0.00055825,37663.0,37662.0,1.33918261]
[1643814671058,0.47989408,37677.0,37662.0,1.33918261]
[1643814671259,0.47989408,37677.0,37662.0,0.98850561]
[1643814671458,0.47989408,37677.0,37668.0,0.09962227]
[1643814671712,0.47989408,37677.0,37662.0,0.9]
[1643814672114,0.52989408,37677.0,37659.0,0.33694785]
[1643814672317,0.52989408,37677.0,37658.0,0.99030779]
[1643814672318,0.281659,37676.0,37658.0,1.01002187]
[1643814672512,0.28241592,37668.0,37659.0,0.25133219]
[1643814672916,0.48045237,37671.0,37659.0,0.25133219]
[1643814673115,0.52935237,37671.0,37659.0,0.25133219]
[1643814673716,0.52879408,37671.0,37659.0,0.30133219]
[1643814673919,0.52879408,37671.0,37658.0,0.27752187]
[1643814673920,0.00054944,37667.0,37658.0,0.01971408]
[1643814674123,0.0489,37666.0,37658.0,0.01971408]
[1643814674317,0.47989408,37665.0,37658.0,0.01971408]
[1643814674517,0.0489,37664.0,37658.0,0.01971408]
[1643814674717,0.0489,37664.0,37657.0,0.7251]
[1643814675116,0.00054945,37663.0,37657.0,0.7251]
[1643814675364,0.0489,37662.0,37661.0,0.28891094]
[1643814675860,0.00054945,37663.0,37662.0,0.25]
[1643814676060,0.0489,37666.0,37662.0,0.25]
[1643814676360,0.00055145,37663.0,37662.0,0.25]
[1643814676765,0.00055145,37663.0,37662.0,0.55]
[1643814677164,0.40969076,37672.0,37662.0,0.55]
[1643814677361,0.40969076,37672.0,37665.0,0.08734918]
[1643814677764,0.31241686,37670.0,37662.0,0.25]
[1643814677965,0.45985192,37669.0,37662.0,0.25]
[1643814678564,0.0489,37670.0,37662.0,0.25]
[1643814678765,0.00046579,37667.0,37662.0,0.25]
[1643814679412,0.50248699,37672.0,37663.0,0.4]
[1643814679615,0.50248699,37672.0,37665.0,0.20097963]
[1643814679812,0.50248699,37672.0,37664.0,0.22093847]
[1643814680013,0.50248699,37672.0,37666.0,0.10046331]
[1643814680217,0.350677,37671.0,37666.0,0.10046331]
[1643814680612,0.35153743,37673.0,37666.0,0.10046331]
[1643814680814,0.350677,37672.0,37663.0,0.4]
[1643814681015,0.28515843,37673.0,37663.0,0.62569232]
[1643814681217,0.4657785,37672.0,37663.0,0.62569232]
[1643814681416,0.4657785,37675.0,37663.0,0.67569232]
[1643814681617,0.4657785,37675.0,37663.0,0.62569232]
[1643814682214,0.00046544,37671.0,37663.0,0.62569232]
[1643814683263,0.70403175,37672.0,37663.0,0.62569232]
[1643814683463,0.00046544,37669.0,37668.0,0.50130565]
[1643814683664,0.00046544,37669.0,37668.0,0.4]
[1643814684464,0.48762793,37677.0,37668.0,0.4]
[1643814684665,0.350677,37676.0,37663.0,0.45]
[1643814684864,0.47221427,37675.0,37666.0,0.08915886]
[1643814685067,0.350677,37674.0,37663.0,0.45]
[1643814685265,0.28332076,37673.0,37664.0,0.27295525]
[1643814685665,0.5321505,37676.0,37669.0,0.33661315]
[1643814685869,0.48485083,37681.0,37669.0,0.33661315]
[1643814686165,0.48485083,37681.0,37674.0,0.08063421]
[1643814686166,0.01907233,37681.0,37674.0,0.08063421]
[1643814686606,0.01907233,37681.0,37674.0,0.59134755]
[1643814687207,0.00056787,37679.0,37675.0,0.29256472]
[1643814687613,0.00056787,37679.0,37674.0,0.64134755]
[1643814687808,0.41478494,37682.0,37675.0,0.65]
[1643814688311,0.41478494,37682.0,37666.0,0.010607]
[1643814688508,0.54750915,37682.0,37666.0,0.010607]
[1643814688707,0.48114194,37682.0,37666.0,0.28778992]
[1643814688907,0.48114194,37682.0,37673.0,0.26744843]
[1643814689111,0.350677,37681.0,37677.0,0.22529337]
[1643814689312,0.350677,37681.0,37674.0,0.07769957]
[1643814689512,0.0941,37683.0,37678.0,0.38146428]
[1643814689710,0.0941,37683.0,37674.0,0.07769957]
[1643814690111,0.0941,37683.0,37680.0,0.09974689]
[1643814690372,0.0941,37683.0,37681.0,0.27717871]
[1643814690567,0.11598249,37683.0,37682.0,1.60507769]
[1643814690765,0.132659,37701.0,37682.0,1.70507769]
[1643814690965,0.2274,37704.0,37694.0,0.26902355]
[1643814691163,0.61024358,37711.0,37694.0,0.26902355]
[1643814691164,0.334749,37703.0,37695.0,0.25]
[1643814691363,0.10187,37711.0,37695.0,0.25]
[1643814691364,0.1,37710.0,37695.0,0.25]
[1643814691763,0.26224647,37703.0,37694.0,0.22763348]
[1643814691963,0.25224647,37703.0,37685.0,0.4657785]
[1643814692162,0.25224647,37703.0,37685.0,0.5157785]
[1643814692862,0.25224647,37703.0,37692.0,0.25086256]
[1643814693066,0.25224647,37703.0,37693.0,0.08532373]
[1643814693463,0.25224647,37703.0,37692.0,0.492086]
[1643814693862,0.25224647,37703.0,37686.0,0.7928]
[1643814694119,0.50552432,37702.0,37686.0,0.7928]
[1643814694313,0.066322,37705.0,37700.0,0.30578731]
[1643814694524,0.334749,37704.0,37696.0,0.0872841]
[1643814694717,0.46328188,37706.0,37699.0,0.27994728]
[1643814694917,0.066311,37710.0,37699.0,0.27994728]
[1643814695315,0.066311,37710.0,37705.0,0.29535816]
[1643814695316,0.334749,37709.0,37705.0,0.29535816]
[1643814695619,0.334749,37709.0,37697.0,0.46328188]
[1643814695816,0.46328188,37708.0,37692.0,0.010601]
[1643814696014,0.59591788,37708.0,37689.0,0.7726]
[1643814696214,0.59591788,37708.0,37689.0,0.8226]
[1643814696414,0.46328188,37708.0,37689.0,0.7726]
[1643814696613,0.334749,37707.0,37694.0,0.21217077]
[1643814696814,0.00046297,37700.0,37695.0,0.25579738]
[1643814697714,0.52960488,37703.0,37684.0,0.7956]
[1643814697715,0.0489,37699.0,37684.0,0.7956]
[1643814697962,0.46328188,37698.0,37680.0,0.27582172]
[1643814698361,0.095,37697.0,37680.0,0.27582172]
[1643814698563,0.26610281,37689.0,37680.0,0.52555984]
[1643814698968,0.51218188,37696.0,37681.0,0.2728515]
[1643814699163,0.00056756,37686.0,37681.0,0.2728515]
[1643814700264,0.00056756,37685.0,37681.0,0.2728515]
[1643814700865,0.00056756,37685.0,37680.0,0.24973812]
[1643814701267,0.52634881,37689.0,37680.0,0.24973812]
[1643814701609,0.00056757,37684.0,37680.0,0.24973812]
[1643814701808,0.00056757,37684.0,37681.0,0.08052959]
[1643814702010,0.00056757,37684.0,37681.0,0.51749866]
[1643814702310,0.00056757,37684.0,37681.0,0.2236314]
[1643814702509,0.54677151,37691.0,37681.0,0.2236314]
[1643814702712,0.59567151,37691.0,37681.0,0.2236314]
[1643814702909,0.22985899,37689.0,37681.0,0.2236314]
[1643814703109,0.49650418,37688.0,37681.0,0.2236314]
[1643814703313,0.49650418,37688.0,37681.0,0.2342354]
[1643814703511,0.0489,37688.0,37681.0,0.2342354]
[1643814703714,0.0489,37688.0,37681.0,0.2236314]
[1643814704310,0.0489,37688.0,37687.0,0.42261297]
[1643814704714,0.48141185,37699.0,37687.0,0.47261297]
[1643814704914,0.48141185,37699.0,37692.0,0.07622793]
[1643814704915,0.334749,37698.0,37692.0,0.07622793]
[1643814705111,0.01812997,37699.0,37692.0,0.07622793]
[1643814705565,0.01812997,37699.0,37693.0,0.24747604]
[1643814705766,0.08445397,37699.0,37693.0,0.24747604]
[1643814706363,0.00056355,37698.0,37693.0,0.24747604]
[1643814707170,0.00056355,37698.0,37693.0,0.29747604]
[1643814707364,0.0489,37709.0,37696.0,0.37942465]
[1643814707568,0.00046033,37697.0,37696.0,0.37942465]
[1643814707865,0.00046033,37697.0,37696.0,1.6448749]
[1643814708469,0.02181993,37710.0,37696.0,1.6448749]
[1643814708667,0.36117358,37713.0,37696.0,0.24882879]
[1643814708871,0.00056381,37698.0,37693.0,0.24747604]
[1643814709117,0.00056381,37698.0,37693.0,0.29747604]
[1643814709320,0.00056381,37698.0,37691.0,0.7721]
[1643814709519,0.00056381,37698.0,37683.0,0.9668]
[1643814709721,0.51810598,37703.0,37684.0,0.29674826]
[1643814709722,0.0489,37697.0,37684.0,0.29674826]
[1643814709917,0.28273201,37704.0,37688.0,0.23213004]
[1643814709918,0.55673145,37696.0,37688.0,0.23213004]
[1643814710120,0.51000571,37695.0,37688.0,0.23213004]
[1643814710517,0.51000571,37695.0,37688.0,0.48004132]
[1643814711124,0.00056383,37693.0,37691.0,0.08001471]
[1643814711324,0.00056383,37693.0,37688.0,0.48004132]
[1643814711519,0.00056383,37693.0,37688.0,0.49064332]
[1643814712119,0.0489,37695.0,37688.0,0.54064332]
[1643814712620,0.00056383,37692.0,37689.0,0.07657131]
[1643814713063,0.00056383,37692.0,37688.0,0.54064332]
[1643814713470,0.28177188,37703.0,37688.0,0.54064332]
[1643814713471,0.46328188,37697.0,37690.0,0.29551734]
[1643814713672,0.00056383,37692.0,37690.0,0.34551734]
[1643814714165,0.00056383,37692.0,37691.0,0.98999059]
[1643814714367,3.83e-06,37692.0,37691.0,1.250605]
[1643814714567,0.46328188,37707.0,37691.0,1.250605]
[1643814714568,0.46328188,37707.0,37691.0,1.350605]
[1643814714764,0.46328188,37710.0,37706.0,0.34349019]
[1643814714966,0.33804937,37717.0,37706.0,0.34349019]
[1643814714967,0.46328188,37714.0,37706.0,0.34349019]
[1643814715166,0.334749,37713.0,37706.0,0.29349019]
[1643814715367,0.46328188,37712.0,37706.0,0.05]
[1643814715566,0.1326,37716.0,37701.0,0.20528281]
[1643814715567,0.46328188,37714.0,37701.0,0.20528281]
[1643814716369,0.46328188,37714.0,37703.0,0.22061734]
[1643814716370,0.1,37713.0,37703.0,0.22061734]
[1643814716626,0.066309,37711.0,37703.0,0.22061734]
[1643814716818,0.46328188,37710.0,37703.0,0.22061734]
[1643814717219,0.00056458,37709.0,37703.0,0.22061734]
[1643814718220,0.066309,37711.0,37703.0,0.22061734]
[1643814718421,0.00056459,37708.0,37703.0,0.22061734]
[1643814718620,0.00056459,37708.0,37703.0,0.27061734]
[1643814718821,0.00056459,37708.0,37704.0,0.35526711]
[1643814719029,0.00056459,37708.0,37703.0,0.27061734]
[1643814719425,0.40792115,37713.0,37703.0,0.27061734]
[1643814719623,0.40792115,37713.0,37711.0,0.24037424]
[1643814719827,0.334749,37712.0,37703.0,0.05]
[1643814720026,0.41538677,37711.0,37701.0,0.35870464]
[1643814720225,0.46059618,37713.0,37701.0,0.64243281]
[1643814720859,0.46059618,37713.0,37705.0,0.23691212]
[1643814721261,0.41274691,37713.0,37705.0,0.23691212]
[1643814722159,0.00056511,37711.0,37705.0,0.23691212]
[1643814722960,0.43273715,37713.0,37708.0,0.10152543]
[1643814723162,0.00056512,37710.0,37708.0,0.10152543]
[1643814723360,0.00056512,37710.0,37708.0,0.05303021]
[1643814723561,0.00056512,37710.0,37707.0,0.27204902]
[1643814724212,0.01999024,37713.0,37707.0,0.27204902]
[1643814724514,0.00046097,37710.0,37707.0,0.27204902]
[1643814724713,0.00046097,37710.0,37707.0,0.05]
[1643814724913,0.00046097,37710.0,37702.0,0.076894]
[1643814725114,0.04936097,37710.0,37702.0,0.0106]
[1643814725312,0.0489,37710.0,37702.0,0.0106]
[1643814725712,0.00056566,37708.0,37702.0,0.0106]
[1643814725910,0.0489,37707.0,37702.0,0.0106]
[1643814726326,0.0489,37707.0,37702.0,0.31663804]
[1643814726515,0.51857684,37713.0,37702.0,0.36663804]
[1643814726715,0.51857684,37713.0,37702.0,0.41663804]
[1643814726913,0.51857684,37713.0,37703.0,0.07632391]
[1643814726914,0.00056566,37706.0,37703.0,0.07632391]
[1643814727116,0.51857684,37713.0,37712.0,0.44410553]
[1643814727117,0.4714048,37713.0,37712.0,0.44410553]
[1643814727317,0.40395023,37722.0,37712.0,0.72279585]
[1643814727318,0.00017259,37722.0,37712.0,0.72279585]
[1643814727614,0.4623,37724.0,37712.0,0.72279585]
[1643814727615,0.33492159,37721.0,37718.0,0.10201774]
[1643814727900,0.00017259,37721.0,37720.0,0.91139408]
[1643814728101,0.4975,37731.0,37720.0,0.65]
[1643814728102,0.00017259,37723.0,37720.0,0.65]
[1643814728296,0.00017259,37723.0,37721.0,0.48614408]
[1643814728700,0.4975,37731.0,37721.0,0.48614408]
[1643814728898,0.27649928,37730.0,37721.0,0.48614408]
[1643814729298,0.27667187,37730.0,37721.0,0.48614408]
[1643814729500,0.00017259,37730.0,37721.0,0.48614408]
[1643814729703,0.00017259,37730.0,37720.0,0.09638321]
[1643814729901,0.00017259,37730.0,37720.0,0.05]
[1643814729902,0.46328188,37730.0,37720.0,0.05]
[1643814730100,0.334749,37729.0,37715.0,0.16651446]
[1643814730305,0.46328188,37728.0,37715.0,0.21651446]
[1643814730503,0.0005662,37727.0,37715.0,0.26651446]
[1643814730701,0.0005662,37727.0,37717.0,0.47588645]
[1643814730702,0.25741294,37726.0,37717.0,0.47588645]
[1643814730899,0.25741294,37726.0,37717.0,0.52588645]
[1643814731100,0.72086741,37726.0,37717.0,0.26027029]
[1643814731727,0.00045858,37723.0,37717.0,0.26027029]
[1643814732527,0.00063117,37723.0,37717.0,0.26027029]
[1643814732725,0.00045858,37722.0,37717.0,0.26027029]
[1643814732930,0.00045858,37722.0,37717.0,0.33710915]
[1643814733128,0.00045858,37722.0,37718.0,0.04638619]
[1643814733929,0.00045858,37722.0,37717.0,0.38710915]
[1643814734126,0.00045858,37722.0,37717.0,0.17683886]
[1643814734326,0.00045858,37722.0,37721.0,0.653208]
[1643814734727,0.00045858,37722.0,37721.0,0.753208]
[1643814734933,0.00017259,37726.0,37721.0,1.103813]
[1643814735132,0.00017259,37727.0,37722.0,0.350605]
[1643814735373,0.00017259,37727.0,37726.0,1.1702835]
[1643814735575,0.00017259,37727.0,37726.0,1.80947024]
[1643814735576,2.59e-06,37727.0,37726.0,1.80947024]
[1643814735880,0.001,37741.0,37728.0,0.09273733]
[1643814736080,0.001,37741.0,37729.0,0.350605]
[1643814736274,0.001,37741.0,37730.0,0.24826026]
[1643814736478,0.132479,37743.0,37732.0,0.9]
[1643814736678,0.28506014,37754.0,37742.0,0.36612648]
[1643814736679,0.44007114,37754.0,37742.0,0.36612648]
[1643814737075,0.44007114,37754.0,37743.0,0.05]
[1643814737478,0.44007114,37754.0,37737.0,0.09271486]
[1643814737676,0.066225,37752.0,37737.0,0.09271486]
[1643814737876,0.066225,37752.0,37744.0,0.26610074]
[1643814738074,0.066225,37752.0,37744.0,0.33997731]
[1643814738374,0.35095068,37750.0,37744.0,0.33997731]
[1643814738577,0.35095068,37750.0,37738.0,0.29146472]
[1643814738781,0.35095068,37750.0,37737.0,0.86101486]
[1643814738978,0.35095068,37750.0,37737.0,0.7683]
[1643814738979,0.46133682,37749.0,37737.0,0.7683]
[1643814739218,0.1,37748.0,37737.0,0.7683]
[1643814739413,0.1,37748.0,37729.0,0.04637156]
[1643814739414,0.30577302,37742.0,37735.0,0.23013778]
[1643814739615,0.46112246,37747.0,37735.0,0.23013778]
[1643814739616,0.066251,37745.0,37735.0,0.23013778]
[1643814739814,0.46144178,37744.0,37735.0,0.23013778]
[1643814740020,0.198755,37746.0,37735.0,0.23013778]
[1643814740214,0.00056616,37740.0,37735.0,0.23013778]
[1643814740414,0.00056616,37740.0,37729.0,0.7708]
[1643814740624,0.0489,37739.0,37729.0,0.7708]
[1643814740818,0.46144178,37738.0,37729.0,0.86186146]
[1643814741014,0.4938007,37737.0,37729.0,0.7708]
[1643814741214,0.4938007,37737.0,37729.0,0.76813125]
[1643814741417,0.30412108,37736.0,37729.0,0.76813125]
[1643814741614,0.44548618,37735.0,37730.0,0.24182831]
[1643814742521,0.00045689,37734.0,37729.0,0.76813125]
[1643814742717,0.00045689,37734.0,37724.0,0.50517346]
[1643814742963,0.0489,37733.0,37724.0,0.50517346]
[1643814743167,0.0489,37733.0,37724.0,0.60517346]
[1643814743663,0.00045688,37731.0,37724.0,0.91841968]
[1643814743866,0.00045688,37731.0,37721.0,0.132505]
[1643814744067,0.00045688,37731.0,37721.0,0.42]
[1643814744264,0.00045688,37731.0,37721.0,0.91152155]
[1643814744265,0.31111748,37728.0,37721.0,0.91152155]
[1643814744466,0.0489,37727.0,37721.0,0.68349685]
[1643814744665,0.0489,37727.0,37721.0,0.42]